fUSD/lending_fUSD_20240118
["ID","MTS","AMOUNT","RATE_DAILY","PERIOD"]
[312009654,1705545043472,-510.67126738,0.00021917,2]
[312009655,1705545043481,-500.0,0.00021917,2]
[312009656,1705545043491,-500.0,0.00021917,2]
[312009657,1705545043500,-500.0,0.00021917,2]
[312009658,1705545043509,-500.0,0.00021917,2]
[312009659,1705545043518,-508.41587338,0.00021917,2]
[312009660,1705545043527,-500.0,0.00021917,2]
[312009661,1705545043536,-500.0,0.00021917,2]
[312009662,1705545043546,-508.51588629,0.00021917,2]
[312009663,1705545043555,-571.68587253,0.00021917,2]
[312009664,1705545043564,-500.0,0.00021917,2]
[312009665,1705545043573,-500.0,0.00021917,2]
[312009666,1705545043582,-500.0,0.00021917,2]
[312009667,1705545043591,-541.10589176,0.00021917,2]
[312009668,1705545043601,-500.0,0.00021917,2]
[312009669,1705545043610,-500.0,0.00021917,2]
[312009670,1705545043619,-500.0,0.00021917,2]
[312009671,1705545043628,-500.0,0.00021917,2]
[312009672,1705545043637,-500.0,0.00021917,2]
[312009673,1705545043646,-500.0,0.00021917,2]
[312009674,1705545043655,-350.39596139,0.00021917,2]
[312009675,1705545043664,-500.0,0.00021917,2]
[312009677,1705545043673,-500.0,0.00021917,2]
[312009679,1705545043682,-500.0,0.00021917,2]
[312009681,1705545043691,-1001.98,0.00021917,2]
[312009682,1705545043700,-500.0,0.00021917,2]
[312009683,1705545043709,-440.958678,0.00021917,2]
[312009684,1705545043719,-559.68286691,0.00021917,2]
[312009685,1705545043730,-504.97814387,0.00021917,2]
[312009686,1705545043740,-500.0,0.00021917,2]
[312009687,1705545043749,-505.06655812,0.00021917,2]
[312009688,1705545043758,-518.16724118,0.00021917,2]
[312009689,1705545043767,-504.48928073,0.00021917,2]
[312009690,1705545043776,-506.36607715,0.00021917,2]
[312009691,1705545043786,-489.96556627,0.00021917,2]
[312009692,1705545043796,-500.0,0.00021917,2]
[312009693,1705545043805,-500.0,0.00021917,2]
[312009694,1705545043815,-513.68682535,0.00021917,2]
[312009695,1705545043824,-510.14702529,0.00021917,2]
[312009696,1705545043834,-500.0,0.00021917,2]
[312009697,1705545043845,-500.0,0.00021917,2]
[312009698,1705545043854,-500.0,0.00021917,2]
[312009699,1705545043863,-506.96037861,0.00021917,2]
[312009700,1705545043873,-500.0,0.00021917,2]
[312009701,1705545043883,-500.0,0.00021917,2]
[312009702,1705545043893,-500.0,0.00021917,2]
[312009703,1705545043902,-500.0,0.00021917,2]
[312009704,1705545043913,-500.0,0.00021917,2]
[312009705,1705545043921,-500.0,0.00021917,2]
[312009706,1705545043930,-500.0,0.00021917,2]
[312009707,1705545043940,-500.0,0.00021917,2]
[312009708,1705545043949,-509.16124062,0.00021917,2]
[312009709,1705545043958,-506.91584604,0.00021917,2]
[312009710,1705545043967,-515.71250522,0.00021917,2]
[312009711,1705545043976,-527.26969905,0.00021917,2]
[312009712,1705545043985,-511.61165669,0.00021917,2]
[312009713,1705545043995,-507.78264818,0.00021917,2]
[312009714,1705545044004,-811.0,0.00021917,2]
[312009715,1705545044014,-500.57314028,0.00021917,2]
[312009716,1705545044023,-514.72406096,0.00021917,2]
[312009717,1705545044032,-500.0,0.00021917,2]
[312009718,1705545044041,-517.92179431,0.00021917,2]
[312009719,1705545044051,-500.0,0.00021917,2]
[312009720,1705545044060,-513.37773346,0.00021917,2]
[312009721,1705545044069,-500.0,0.00021917,2]
[312009722,1705545044078,-500.0,0.00021917,2]
[312009723,1705545044087,-511.32719672,0.00021917,2]
[312009724,1705545044097,-500.0,0.00021917,2]
[312009725,1705545044106,-508.64015039,0.00021917,2]
[312009726,1705545044116,-500.55268231,0.00021917,2]
[312009727,1705545044125,-511.5165323,0.00021917,2]
[312009728,1705545044134,-500.0,0.00021917,2]
[312009729,1705545044143,-500.0,0.00021917,2]
[312009730,1705545044152,-500.82199237,0.00021917,2]
[312009731,1705545044162,-517.47516842,0.00021917,2]
[312009732,1705545044170,-500.0,0.00021917,2]
[312009733,1705545044180,-500.0,0.00021917,2]
[312009734,1705545044189,-500.0,0.00021917,2]
[312009735,1705545044198,-517.22598031,0.00021917,2]
[312009736,1705545044208,-500.0,0.00021917,2]
[312009737,1705545044217,-500.0,0.00021917,2]
[312009738,1705545044226,-500.0,0.00021917,2]
[312009739,1705545044235,-520.6359275,0.00021917,2]
[312009740,1705545044244,-500.0,0.00021917,2]
[312009741,1705545044253,-518.78442561,0.00021917,2]
[312009742,1705545044262,-500.0,0.00021917,2]
[312009743,1705545044271,-517.43661438,0.00021917,2]
[312009744,1705545044280,-500.0,0.00021917,2]
[312009745,1705545044289,-500.0,0.00021917,2]
[312009746,1705545044298,-508.16367104,0.00021917,2]
[312009747,1705545044307,-500.0,0.00021917,2]
[312009748,1705545044317,-510.20348587,0.00021917,2]
[312009749,1705545044327,-540.83499902,0.00021917,2]
[312009750,1705545044336,-500.0,0.00021917,2]
[312009751,1705545044344,-500.0,0.00021917,2]
[312009752,1705545044353,-510.67462078,0.00021917,2]
[312009753,1705545044363,-640.6,0.00021917,2]
[312009754,1705545044372,-272.20855014,0.00021917,2]
[312009755,1705545044381,-500.0,0.00021917,2]
[312009756,1705545044391,-504.5473454,0.00021917,2]
[312009757,1705545044400,-515.94265347,0.00021917,2]
[312009758,1705545044410,-500.0,0.00021917,2]
[312009759,1705545044419,-515.71816769,0.00021917,2]
[312009760,1705545044428,-500.0,0.00021917,2]
[312009761,1705545044438,-509.61858926,0.00021917,2]
[312009762,1705545044447,-518.86906172,0.00021917,2]
[312009763,1705545044456,-500.0,0.00021917,2]
[312009764,1705545044465,-500.0,0.00021917,2]
[312009765,1705545044474,-500.0,0.00021917,2]
[312009766,1705545044484,-521.48284466,0.00021917,2]
[312009767,1705545044493,-500.0,0.00021917,2]
[312009768,1705545044503,-502.35318315,0.00021917,2]
[312009769,1705545044512,-492.52685547,0.00021917,2]
[312009770,1705545044521,-500.0,0.00021917,2]
[312009771,1705545044530,-512.02245807,0.00021917,2]
[312009772,1705545044539,-502.23677211,0.00021917,2]
[312009773,1705545044549,-507.71496317,0.00021917,2]
[312009774,1705545044558,-500.0,0.00021917,2]
[312009775,1705545044567,-504.49666254,0.00021917,2]
[312009776,1705545044577,-500.0,0.00021917,2]
[312009777,1705545044587,-500.0,0.00021917,2]
[312009778,1705545044597,-508.93043359,0.00021917,2]
[312009779,1705545044605,-500.0,0.00021917,2]
[312009780,1705545044615,-500.0,0.00021917,2]
[312009781,1705545044624,-500.0,0.00021917,2]
[312009782,1705545044633,-416.5517039,0.00021917,2]
[312009783,1705545044641,-476.12699389,0.00021917,2]
[312009784,1705545044651,-520.80324181,0.00021917,2]
[312009785,1705545044660,-539.32,0.00021917,2]
[312009786,1705545044669,-500.0,0.00021917,2]
[312009787,1705545044678,-500.0,0.00021917,2]
[312009788,1705545044687,-500.0,0.00021917,2]
[312009789,1705545044695,-578.17684302,0.00021917,2]
[312009790,1705545044705,-505.24163058,0.00021917,2]
[312009791,1705545044714,-199.71040019,0.00021917,2]
[312009792,1705545044723,-500.0,0.00021917,2]
[312009793,1705545044734,-500.0,0.00021917,2]
[312009794,1705545044743,-500.0,0.00021917,2]
[312009795,1705545044752,-500.0,0.00021917,2]
[312009796,1705545044761,-286.10417424,0.00021917,2]
[312009797,1705545044786,-213.89582576,0.00021917,2]
[312009798,1705545044795,-527.72913177,0.00021917,2]
[312009799,1705545044804,-513.12544172,0.00021917,2]
[312009800,1705545044813,-506.54280454,0.00021917,2]
[312009801,1705545044823,-508.56185622,0.00021917,2]
[312009802,1705545044832,-500.0,0.00021917,2]
[312009803,1705545044841,-514.75416106,0.00021917,2]
[312009804,1705545044850,-553.81,0.00021917,2]
[312009805,1705545044859,-328.43212359,0.00021917,2]
[312009810,1705545045446,-325.87400702,0.00020548,2]
[312009811,1705545045458,-625.15762086,0.00020548,2]
[312009812,1705545045470,-543.0,0.00020548,2]
[312009813,1705545045481,-505.96837212,0.00020548,2]
[312009814,1705545045490,-552.77374056,0.00021715,2]
[312009815,1705545045502,-717.9393668,0.00021715,2]
[312009816,1705545045512,-7.125632,0.00021716,2]
[312009817,1705545045523,-316.75908617,0.00021716,2]
[312009818,1705545045624,-94.24870001,0.00021716,2]
[312009819,1705545045634,-171.56787641,0.00021917,2]
[312009820,1705545045643,-234.81238057,0.00021917,2]
[312009821,1705545045741,-272.33842981,0.00021917,2]
[312009822,1705545045750,-513.4273073,0.00021917,2]
[312009823,1705545045760,-306.10885691,0.00021917,2]
[312009824,1705545045771,-193.89114309,0.00021917,2]
[312009825,1705545045781,-500.0,0.00021917,2]
[312009826,1705545045789,-506.30568428,0.00021917,2]
[312009827,1705545045798,-500.0,0.00021917,2]
[312009828,1705545045808,-500.0,0.00021917,2]
[312009829,1705545045817,-615.04,0.00021917,2]
[312009830,1705545045826,-500.0,0.00021917,2]
[312009831,1705545045835,-234.38943735,0.00021917,2]
[312009834,1705545045862,-265.61056265,0.00021917,2]
[312009835,1705545045871,-500.0,0.00021917,2]
[312009836,1705545045881,-99.4656101,0.00021917,2]
[312009842,1705545834985,614.22,0.00018109,2]
[312009844,1705546113474,3000.0,0.0003,120]
[312009853,1705546231591,-370.42818622,0.00018846,2]
[312009854,1705546231602,-3126.62522492,0.00018846,2]
[312009855,1705546231611,-418.13341818,0.00018847,2]
[312009856,1705546231620,-285.40909205,0.00018848,2]
[312009857,1705546231630,-1607.9409755,0.00018849,2]
[312009858,1705546231642,-650.41397724,0.00018849,2]
[312009859,1705546231654,-492.21325743,0.00018849,2]
[312009860,1705546231677,-1169.53619494,0.00018849,2]
[312009861,1705546231698,-1413.99303824,0.00018849,2]
[312009862,1705546231708,-300.0,0.00018855,2]
[312009863,1705546231718,-1601.25274357,0.00018856,2]
[312009864,1705546231727,-150.0,0.00019836,2]
[312009865,1705546231736,-972.78,0.00019909,2]
[312009866,1705546231746,-23900.0,0.00019912,2]
[312009867,1705546231755,-250.0,0.00019922,2]
[312009868,1705546231764,-1638.17,0.00019945,2]
[312009869,1705546231774,-150.0,0.00019947,2]
[312009870,1705546231784,-494.48,0.00019947,2]
[312009871,1705546231793,-413.22,0.00019953,2]
[312009872,1705546231802,-186.64,0.00019956,2]
[312009873,1705546231812,-1088.76,0.0001996,2]
[312009874,1705546231821,-163.1,0.00020005,2]
[312009875,1705546231831,-432.26,0.00020078,2]
[312009876,1705546231840,-154.38,0.00020082,2]
[312009877,1705546231851,-163.41,0.00020125,2]
[312009878,1705546231861,-1210.89,0.00020164,2]
[312009879,1705546231870,-154.38,0.00020292,2]
[312009880,1705546231880,-614.22,0.00020373,2]
[312009881,1705546231889,-206.0,0.00020402,2]
[312009882,1705546231898,-154.38,0.00020501,2]
[312009883,1705546231908,-165.43,0.00020545,2]
[312009884,1705546231917,-1000.0,0.00020563,2]
[312009885,1705546231927,-154.38,0.0002071,2]
[312009886,1705546231936,-150.0,0.00020746,2]
[312009887,1705546231945,-160.64,0.00020802,2]
[312009888,1705546231955,-163.1,0.00020806,2]
[312009889,1705546231964,-150.0,0.00020856,2]
[312009890,1705546231973,-972.78,0.00020888,2]
[312009891,1705546231983,-176.3,0.00020917,2]
[312009892,1705546231993,-150.0,0.00020917,2]
[312009893,1705546232002,-154.38,0.0002092,2]
[312009894,1705546232011,-1076.12,0.00020938,2]
[312009895,1705546232021,-1638.17,0.00020943,2]
[312009896,1705546232030,-163.41,0.00021071,2]
[312009897,1705546232039,-150.0,0.00021088,2]
[312009898,1705546232049,-194.54,0.00021111,2]
[312009899,1705546232059,-154.38,0.00021129,2]
[312009900,1705546232072,-418.16,0.00021342,2]
[312009901,1705546232081,-294.16,0.00021342,2]
[312009902,1705546232091,-314.4,0.00021342,2]
[312009903,1705546232102,-150.0,0.0002139,2]
[312009904,1705546232114,-176.3,0.00021465,2]
[312009905,1705546232123,-150.0,0.00021465,2]
[312009906,1705546232132,-252.65786308,0.0002147,2]
[312009907,1705546232141,-153.60276024,0.0002147,2]
[312009908,1705546232150,-150.0,0.00021516,2]
[312009909,1705546232159,-150.0,0.00021521,2]
[312009910,1705546232168,-150.0,0.00021545,2]
[312009911,1705546232177,-163.1,0.00021606,2]
[312009912,1705546232187,-150.0,0.00021681,2]
[312009913,1705546232196,-914.0,0.00021698,2]
[312009914,1705546232206,-32821.54472716,0.00021717,2]
[312009915,1705546232218,-3025.38731659,0.00021717,2]
[312009916,1705546232230,-815.48325625,0.00021717,2]
[312009917,1705546232239,-150.0,0.00021726,2]
[312009918,1705546232248,-150.0,0.00021726,2]
[312009919,1705546232258,-150.0,0.00021726,2]
[312009920,1705546232267,-150.0,0.00021726,2]
[312009921,1705546232277,-150.0,0.00021726,2]
[312009923,1705546232286,-153.7,0.00021726,2]
[312009924,1705546232295,-215.05794554,0.00021815,2]
[312009927,1705546232306,-385.33323618,0.00021815,2]
[312009929,1705546232317,-340.33730761,0.00021815,2]
[312009931,1705546232327,-191.09106298,0.00021815,2]
[312009933,1705546232336,-157.10937998,0.00021815,2]
[312009935,1705546232347,-252.41133899,0.00021815,2]
[312009937,1705546232356,-249.31243773,0.00021815,2]
[312009939,1705546232365,-92.92847271,0.00021815,2]
[312009942,1705546232387,-62.34330572,0.00021815,2]
[312009944,1705546232396,-493.4500678,0.00021815,2]
[312009947,1705546232408,-627.62684945,0.00021815,2]
[312009951,1705546232436,-153.03474561,0.00018747,2]
[312009952,1705546232446,-649.73586947,0.00021815,2]
[312009953,1705546232456,-247.94345066,0.00021815,2]
[312009954,1705546232465,-1763.91915746,0.00021815,2]
[312009955,1705546232474,-217.95628479,0.00021815,2]
[312009956,1705546232484,-199.32249492,0.00021815,2]
[312009957,1705546232493,-543.52757955,0.00021815,2]
[312009958,1705546232503,-914.08361235,0.00021815,2]
[312009959,1705546232512,-843.14773641,0.00021815,2]
[312009960,1705546232521,-484.45845653,0.00021815,2]
[312009961,1705546232531,-2148.31922341,0.00021815,2]
[312009962,1705546232541,-22.51666892,0.00021815,2]
[312009972,1705546237560,-153.03474555,0.00019264,2]
[312009973,1705546237570,-155.52,0.00020254,2]
[312009974,1705546237580,-11.47275864,0.00020704,2]
[312009975,1705546237592,-144.04724136,0.00020704,2]
[312009976,1705546237602,-155.52,0.00021154,2]
[312009977,1705546237612,-155.52,0.00021604,2]
[312009978,1705546237621,-492.58139819,0.00021815,2]
[312009979,1705546237631,-75.0958065,0.00021815,2]
[312009980,1705546237836,-192.04774055,0.00021815,2]
[312009981,1705546237846,-472.83901556,0.00021816,2]
[312009982,1705546237944,-8.00246579,0.00021816,2]
[312009984,1705546237953,-1000.0,0.00021817,2]
[312009986,1705546237962,-69265.018,0.00021817,2]
[312009988,1705546237971,-5000.0,0.00021817,2]
[312009990,1705546237980,-661.9577,0.00021817,2]
[312009992,1705546237990,-55555.0,0.00021817,2]
[312009994,1705546237999,-617.84931038,0.00021817,2]
[312009996,1705546238008,-227.7910841,0.00021817,2]
[312009998,1705546238017,-972.78,0.00021866,2]
[312010000,1705546238026,-426.48,0.00021888,2]
[312010002,1705546238035,-151.22,0.0002189,2]
[312010004,1705546238044,-150.0,0.00021897,2]
[312010006,1705546238053,-195.04292305,0.00021907,2]
[312010008,1705546238064,-301.00590839,0.00021916,2]
[312010010,1705546238074,-150.0,0.00021916,2]
[312010012,1705546238083,-313.60850865,0.00021917,2]
[312010014,1705546238093,-617.00236934,0.00021917,2]
[312010016,1705546238103,-513.92434459,0.00021917,2]
[312010018,1705546238112,-501.19046184,0.00021917,2]
[312010020,1705546238122,-605.4282524,0.00021917,2]
[312010022,1705546238131,-503.00017274,0.00021917,2]
[312010024,1705546238140,-1000.97014592,0.00021917,2]
[312010026,1705546238150,-501.43952796,0.00021917,2]
[312010028,1705546238160,-500.0,0.00021917,2]
[312010030,1705546238170,-500.839175,0.00021917,2]
[312010032,1705546238178,-500.0,0.00021917,2]
[312010034,1705546238188,-500.0,0.00021917,2]
[312010036,1705546238196,-500.0,0.00021917,2]
[312010038,1705546238205,-500.0,0.00021917,2]
[312010040,1705546238214,-500.0,0.00021917,2]
[312010042,1705546238223,-500.0,0.00021917,2]
[312010044,1705546238232,-500.0,0.00021917,2]
[312010046,1705546238241,-500.0,0.00021917,2]
[312010048,1705546238251,-500.0,0.00021917,2]
[312010050,1705546238260,-500.0,0.00021917,2]
[312010052,1705546238269,-500.0,0.00021917,2]
[312010054,1705546238278,-504.7650271,0.00021917,2]
[312010056,1705546238286,-499.6956726,0.00021917,2]
[312010058,1705546238295,-586.34506658,0.00021917,2]
[312010060,1705546238304,-229.75427218,0.00021917,2]
[312010062,1705546238313,-500.0,0.00021917,2]
[312010064,1705546238323,-500.0,0.00021917,2]
[312010066,1705546238332,-500.0,0.00021917,2]
[312010068,1705546238341,-500.0,0.00021917,2]
[312010070,1705546238350,-500.0,0.00021917,2]
[312010072,1705546238359,-500.0,0.00021917,2]
[312010074,1705546238368,-500.0,0.00021917,2]
[312010076,1705546238377,-500.0,0.00021917,2]
[312010078,1705546238386,-505.68699645,0.00021917,2]
[312010080,1705546238395,-500.0,0.00021917,2]
[312010082,1705546238404,-500.0,0.00021917,2]
[312010084,1705546238413,-500.0,0.00021917,2]
[312010086,1705546238422,-500.0,0.00021917,2]
[312010088,1705546238432,-500.0,0.00021917,2]
[312010089,1705546238441,-505.31065472,0.00021917,2]
[312010092,1705546238450,-500.0,0.00021917,2]
[312010094,1705546238463,-506.31375067,0.00021917,2]
[312010096,1705546238473,-223.04917847,0.00021917,2]
[312010097,1705546238483,-632.0763679,0.00021917,2]
[312010100,1705546238493,-500.0,0.00021917,2]
[312010102,1705546238504,-500.0,0.00021917,2]
[312010104,1705546238513,-504.79986645,0.00021917,2]
[312010105,1705546238525,-504.87530824,0.00021917,2]
[312010108,1705546238534,-500.0,0.00021917,2]
[312010110,1705546238545,-500.0,0.00021917,2]
[312010112,1705546238555,-500.0,0.00021917,2]
[312010114,1705546238564,-500.0,0.00021917,2]
[312010116,1705546238573,-500.0,0.00021917,2]
[312010117,1705546238584,-500.0,0.00021917,2]
[312010120,1705546238594,-500.0,0.00021917,2]
[312010122,1705546238605,-500.0,0.00021917,2]
[312010123,1705546238615,-500.0,0.00021917,2]
[312010126,1705546238628,-500.0,0.00021917,2]
[312010127,1705546238636,-500.0,0.00021917,2]
[312010129,1705546238646,-500.0,0.00021917,2]
[312010132,1705546238659,-500.0,0.00021917,2]
[312010134,1705546238668,-500.0,0.00021917,2]
[312010136,1705546238677,-515.14688874,0.00021917,2]
[312010138,1705546238686,-500.0,0.00021917,2]
[312010140,1705546238697,-500.0,0.00021917,2]
[312010142,1705546238706,-500.0,0.00021917,2]
[312010144,1705546238716,-500.0,0.00021917,2]
[312010146,1705546238726,-502.40742769,0.00021917,2]
[312010148,1705546238735,-506.91373949,0.00021917,2]
[312010150,1705546238744,-515.61172875,0.00021917,2]
[312010152,1705546238754,-500.0,0.00021917,2]
[312010154,1705546238763,-500.0,0.00021917,2]
[312010156,1705546238772,-500.0,0.00021917,2]
[312010158,1705546238782,-500.0,0.00021917,2]
[312010160,1705546238791,-500.0,0.00021917,2]
[312010162,1705546238800,-504.35381592,0.00021917,2]
[312010164,1705546238810,-500.0,0.00021917,2]
[312010166,1705546238819,-500.0,0.00021917,2]
[312010168,1705546238829,-500.0,0.00021917,2]
[312010170,1705546238838,-500.0,0.00021917,2]
[312010172,1705546238849,-503.58458716,0.00021917,2]
[312010174,1705546238861,-500.0,0.00021917,2]
[312010176,1705546238871,-511.78252302,0.00021917,2]
[312010178,1705546238880,-500.0,0.00021917,2]
[312010180,1705546238889,-447.20477088,0.00021917,2]
[312010182,1705546238898,-506.60238146,0.00021917,2]
[312010184,1705546238908,-514.6657646,0.00021917,2]
[312010187,1705546238918,-500.0,0.00021917,2]
[312010189,1705546238928,-500.0,0.00021917,2]
[312010191,1705546238937,-500.0,0.00021917,2]
[312010193,1705546238946,-500.0,0.00021917,2]
[312010194,1705546238955,-500.0,0.00021917,2]
[312010197,1705546238966,-275.97175204,0.00021917,2]
[312010199,1705546238975,-500.0,0.00021917,2]
[312010201,1705546238984,-500.0,0.00021917,2]
[312010203,1705546238993,-500.0,0.00021917,2]
[312010205,1705546239002,-500.0,0.00021917,2]
[312010206,1705546239011,-500.0,0.00021917,2]
[312010209,1705546239020,-511.25942048,0.00021917,2]
[312010211,1705546239030,-500.0,0.00021917,2]
[312010213,1705546239041,-282.02330406,0.00021917,2]
[312010219,1705546239095,-512.20094057,0.00021917,2]
[312010221,1705546239106,-500.0,0.00021917,2]
[312010223,1705546239116,-500.0,0.00021917,2]
[312010225,1705546239125,-500.0,0.00021917,2]
[312010227,1705546239134,-505.97130481,0.00021917,2]
[312010229,1705546239143,-503.33465639,0.00021917,2]
[312010231,1705546239153,-500.0,0.00021917,2]
[312010233,1705546239163,-509.40250133,0.00021917,2]
[312010235,1705546239171,-523.18270728,0.00021917,2]
[312010237,1705546239180,-500.0,0.00021917,2]
[312010239,1705546239189,-500.0,0.00021917,2]
[312010241,1705546239199,-500.0,0.00021917,2]
[312010243,1705546239208,-500.0,0.00021917,2]
[312010245,1705546239217,-500.0,0.00021917,2]
[312010247,1705546239226,-500.0,0.00021917,2]
[312010249,1705546239235,-511.7480204,0.00021917,2]
[312010251,1705546239244,-507.44378042,0.00021917,2]
[312010253,1705546239252,-500.0,0.00021917,2]
[312010255,1705546239261,-507.01177096,0.00021917,2]
[312010257,1705546239270,-512.49688344,0.00021917,2]
[312010259,1705546239279,-500.0,0.00021917,2]
[312010261,1705546239288,-500.0,0.00021917,2]
[312010263,1705546239298,-502.90012325,0.00021917,2]
[312010265,1705546239307,-521.82785414,0.00021917,2]
[312010267,1705546239317,-540.1496247,0.00021917,2]
[312010269,1705546239326,-511.81044005,0.00021917,2]
[312010271,1705546239334,-500.0,0.00021917,2]
[312010273,1705546239343,-500.0,0.00021917,2]
[312010275,1705546239355,-500.0,0.00021917,2]
[312010277,1705546239363,-500.0,0.00021917,2]
[312010279,1705546239372,-505.47506122,0.00021917,2]
[312010281,1705546239381,-500.0,0.00021917,2]
[312010283,1705546239391,-500.0,0.00021917,2]
[312010285,1705546239401,-250.0,0.00021917,2]
[312010287,1705546239411,-509.97229709,0.00021917,2]
[312010289,1705546239420,-500.0,0.00021917,2]
[312010291,1705546239429,-501.99601349,0.00021917,2]
[312010293,1705546239438,-500.0,0.00021917,2]
[312010295,1705546239447,-505.31896773,0.00021917,2]
[312010297,1705546239456,-500.0,0.00021917,2]
[312010299,1705546239465,-577.8287598,0.00021917,2]
[312010301,1705546239476,-500.0,0.00021917,2]
[312010303,1705546239485,-500.0,0.00021917,2]
[312010305,1705546239494,-504.79101136,0.00021917,2]
[312010307,1705546239504,-500.0,0.00021917,2]
[312010309,1705546239514,-500.0,0.00021917,2]
[312010311,1705546239523,-500.0,0.00021917,2]
[312010313,1705546239532,-505.04632058,0.00021917,2]
[312010315,1705546239542,-500.0,0.00021917,2]
[312010317,1705546239551,-504.38775073,0.00021917,2]
[312010319,1705546239560,-500.0,0.00021917,2]
[312010320,1705546239569,-500.0,0.00021917,2]
[312010321,1705546239578,-500.0,0.00021917,2]
[312010322,1705546239587,-500.0,0.00021917,2]
[312010323,1705546239596,-507.29389265,0.00021917,2]
[312010324,1705546239606,-503.05776997,0.00021917,2]
[312010325,1705546239616,-465.11244246,0.00021917,2]
[312010326,1705546239625,-500.0,0.00021917,2]
[312010328,1705546239635,-500.0,0.00021917,2]
[312010329,1705546239644,-500.0,0.00021917,2]
[312010331,1705546239653,-472.6051411,0.00021917,2]
[312010333,1705546239662,-506.26352656,0.00021917,2]
[312010335,1705546239672,-503.33797492,0.00021917,2]
[312010337,1705546239681,-503.35214307,0.00021917,2]
[312010339,1705546239690,-500.0,0.00021917,2]
[312010341,1705546239699,-529.29244006,0.00021917,2]
[312010343,1705546239709,-500.0,0.00021917,2]
[312010345,1705546239718,-472.90473423,0.00021917,2]
[312010347,1705546239727,-500.0,0.00021917,2]
[312010349,1705546239737,-500.0,0.00021917,2]
[312010351,1705546239746,-500.0,0.00021917,2]
[312010353,1705546239755,-500.0,0.00021917,2]
[312010356,1705546239765,-504.23402926,0.00021917,2]
[312010357,1705546239774,-500.0,0.00021917,2]
[312010359,1705546239783,-500.0,0.00021917,2]
[312010362,1705546239793,-500.0,0.00021917,2]
[312010364,1705546239802,-500.0,0.00021917,2]
[312010365,1705546239812,-500.0,0.00021917,2]
[312010368,1705546239823,-500.0,0.00021917,2]
[312010370,1705546239832,-500.0,0.00021917,2]
[312010371,1705546239841,-500.0,0.00021917,2]
[312010374,1705546239854,-503.40594524,0.00021917,2]
[312010375,1705546239863,-504.82813568,0.00021917,2]
[312010378,1705546239874,-500.0,0.00021917,2]
[312010379,1705546239882,-500.0,0.00021917,2]
[312010381,1705546239891,-504.92949301,0.00021917,2]
[312010383,1705546239900,-500.0,0.00021917,2]
[312010385,1705546239909,-500.0,0.00021917,2]
[312010387,1705546239918,-500.0,0.00021917,2]
[312010389,1705546239928,-500.0,0.00021917,2]
[312010391,1705546239937,-500.0,0.00021917,2]
[312010393,1705546239946,-505.78252208,0.00021917,2]
[312010395,1705546239955,-505.86490267,0.00021917,2]
[312010398,1705546239966,-500.0,0.00021917,2]
[312010399,1705546239974,-506.53798516,0.00021917,2]
[312010401,1705546239983,-500.0,0.00021917,2]
[312010403,1705546239992,-2000.0,0.00021917,2]
[312010405,1705546240001,-363.22004169,0.00021917,2]
[312010407,1705546240010,-500.0,0.00021917,2]
[312010410,1705546240020,-500.0,0.00021917,2]
[312010414,1705546240029,-200.0,0.00021917,2]
[312010416,1705546240039,-500.0,0.00021917,2]
[312010419,1705546240048,-506.33173059,0.00021917,2]
[312010421,1705546240058,-496.43846476,0.00021917,2]
[312010424,1705546240068,-581.73909521,0.00021917,2]